bitfinex/quotes_SOLUSD_20240906
["timestamp","ask_amount","ask_price","bid_price","bid_amount"]
[1725655353484,8.0032,124.95,124.92,45.0]
[1725655353657,8.0026,124.96,124.92,45.0]
[1725655354051,8.0017,124.98,124.92,53.0046]
[1725655354257,21.99933333,125.01,124.92,45.0]
[1725655355255,8.0022,124.97,124.92,53.005]
[1725655355873,8.0039,124.94,124.89,8.0069]
[1725655356107,8.0039,124.94,124.9,8.0063]
[1725655356574,8.0039,124.94,124.88,20.0185]
[1725655356575,8.0039,124.94,124.89,8.0068]
[1725655356754,8.0054,124.92,124.88,20.0185]
[1725655356956,20.0054,124.97,124.84,55.7403]
[1725655357162,8.0049,124.93,124.88,8.0074]
[1725655357569,28.0052,124.92,124.87,28.0283]
[1725655357776,28.0052,124.92,124.88,8.0075]
[1725655358186,8.0058,124.91,124.87,28.0284]
[1725655358371,20.0,124.92,124.85,8.0094]
[1725655358372,8.0064,124.9,124.85,8.0094]
[1725655358685,8.011,124.83,124.78,23.5374]
[1725655358865,20.02,124.88,124.78,23.5374]
[1725655358866,8.0102,124.85,124.78,15.5234]
[1725655359059,20.0,124.84,124.79,20.0327]
[1725655359379,28.0107,124.84,124.8,8.0127]
[1725655359584,20.0,124.84,124.78,15.5234]
[1725655359778,8.0109,124.83,124.78,15.5234]
[1725655359988,8.0103,124.84,124.78,15.5234]
[1725655360295,8.0116,124.82,124.76,34.3378]
[1725655360495,28.0122,124.81,124.76,20.038]
[1725655360669,28.0122,124.81,124.76,28.0531]
[1725655360670,8.0122,124.81,124.76,28.0531]
[1725655360866,20.0,124.8,124.76,28.0531]
[1725655361496,40.0398,124.88,124.76,20.038]
[1725655361692,7.3565346,124.92,124.83,8.0102]
[1725655361877,6.6203,124.93,124.83,8.0102]
[1725655362077,8.0063,124.91,124.86,8.0087]
[1725655362800,8.0066,124.9,124.84,20.0245]
[1725655362987,8.0071,124.89,124.85,45.0]
[1725655363180,6.6203,124.93,124.85,45.0]
[1725655363708,20.0,124.92,124.85,45.0]
[1725655365076,8.0071,124.89,124.85,45.0]
[1725655365302,20.0,124.88,124.85,45.0]
[1725655365477,20.0,124.88,124.85,53.0095]
[1725655365672,10.12200323,124.94,124.85,45.0]
[1725655365880,8.0044,124.93,124.88,8.0075]
[1725655366131,8.0044,124.93,124.89,45.0]
[1725655366482,8.0051,124.92,124.89,45.0]
[1725655366685,20.0058,124.97,124.89,45.0]
[1725655367000,20.0058,124.97,124.88,53.0076]
[1725655367001,8.0044,124.94,124.88,53.0076]
[1725655367299,20.0058,124.97,124.89,20.0173]
[1725655367510,20.0,124.96,124.9,45.0]
[1725655368012,22.01034431,124.95,124.83,15.198]
[1725655368184,8.0058,124.91,124.86,8.0084]
[1725655368382,8.0064,124.9,124.86,8.0084]
[1725655368619,20.0093,124.95,124.86,8.0084]
[1725655368814,20.0093,124.95,124.85,20.0228]
[1725655368815,20.0,124.94,124.85,28.0322]
[1725655369124,8.0071,124.89,124.85,20.0228]
[1725655369994,8.0051,124.92,124.85,28.0322]
[1725655370204,20.0,124.91,124.86,45.0]
[1725655370407,20.0,124.94,124.9,8.0063]
[1725655370909,131.8,124.99,124.91,45.0]
[1725655371145,7.3565346,125.01,124.91,20.0135]
[1725655371146,8.0014,124.98,124.91,20.0135]
[1725655371414,8.0013,124.98,124.93,8.0042]
[1725655371599,4.46117979,125.01,124.93,8.0043]
[1725655371916,4.46117979,125.01,124.83,65.198]
[1725655371917,9.88606061,124.98,124.84,50.0]
[1725655372117,24.46027979,125.01,124.92,20.0119]
[1725655372118,21.99999082,125.01,124.92,20.0119]
[1725655372314,29.88516061,125.01,124.93,45.0]
[1725655372613,31.88570259,125.01,124.93,45.0]
[1725655372998,8.0025,124.97,124.93,45.0]
[1725655373209,8.0013,124.98,124.93,45.0]
[1725655373718,8.0013,124.98,124.93,53.0039]
[1725655373888,8.0007,124.99,124.94,8.0035]
[1725655374093,20.0,124.98,124.95,45.0]
[1725655374289,8.0007,124.99,124.95,53.0031]
[1725655374494,8.0,125.0,124.95,53.0031]
[1725655374697,7.9994,125.01,124.96,8.0025]
[1725655374916,7.9994,125.01,124.97,45.0]
[1725655375302,7.9994,125.01,124.97,53.0017]
[1725655375739,7.9986,125.03,124.99,8.0006]
[1725655376022,7.9986,125.03,125.0,45.0]
[1725655376327,7.9974,125.04,125.0,45.0]
[1725655377820,7.9968,125.05,125.0,52.9993]
[1725655378208,7.9975,125.04,125.0,45.0]
[1725655378405,145.54887308,125.09,124.99,45.0]
[1725655378406,7.9986,125.03,124.99,45.0]
[1725655379035,7.9998,125.01,124.96,8.0025]
[1725655379333,19.9913,125.06,124.97,8.0015]
[1725655379334,7.9988,125.02,124.97,8.0015]
[1725655379515,20.0,125.01,124.97,8.0015]
[1725655380023,27.9995,125.01,124.97,8.0018]
[1725655380210,20.0,125.01,124.97,8.0018]
[1725655380416,20.0,125.05,124.98,45.0]
[1725655380626,7.9981,125.03,124.99,8.0005]
[1725655380833,7.9981,125.03,125.0,45.0]
[1725655381007,7.9968,125.05,125.0,52.9999]
[1725655381729,7.9966,125.06,125.01,7.9988]
[1725655381909,7.9966,125.06,125.02,45.0]
[1725655382113,22.42943802,125.09,125.02,45.0]
[1725655382114,2.44313802,125.09,125.02,45.0]
[1725655382315,4.44211794,125.09,124.98,26.3331]
[1725655382526,4.44211794,125.09,124.96,8.0024]
[1725655382527,7.9998,125.01,124.96,8.0024]
[1725655382725,8.0001,125.0,124.95,20.0073]
[1725655382916,8.0001,125.0,124.95,28.0103]
[1725655383312,8.0007,124.99,124.94,8.0037]
[1725655383530,2.00024679,125.04,124.94,20.0089]
[1725655383732,8.0027,124.96,124.92,16.2685]
[1725655384044,8.0053,124.92,124.88,6.3109]
[1725655384209,2.00090383,124.95,124.86,15.3381]
[1725655384210,22.00090383,124.95,124.86,15.3381]
[1725655384604,22.00090383,124.95,124.85,20.0235]
[1725655384605,20.0105,124.94,124.85,20.0235]
[1725655384806,20.0,124.93,124.85,28.0331]
[1725655385233,8.0069,124.9,124.85,28.0331]
[1725655385409,20.0,124.89,124.85,28.0331]
[1725655385813,20.0,124.89,124.87,8.0083]
[1725655386011,20.0,124.91,124.85,20.0235]
[1725655386222,24.39706952,124.95,124.85,20.0235]
[1725655386517,44.40626952,124.95,124.85,20.0235]
[1725655386812,42.40452672,124.95,124.85,20.0235]
[1725655387021,44.4061262,124.95,124.85,20.0235]
[1725655387423,44.4061262,124.95,124.86,45.0]
[1725655388444,8.007,124.89,124.86,45.0]
[1725655388674,8.006,124.91,124.86,53.0085]
[1725655388954,8.0065,124.9,124.86,45.0]
[1725655389247,20.0,124.89,124.86,45.0]
[1725655389541,20.0,124.89,124.86,53.0086]
[1725655389720,20.0,124.94,124.86,45.0]
[1725655389936,20.0,124.94,124.89,8.0069]
[1725655389937,8.0039,124.94,124.89,8.0069]
[1725655390141,8.0039,124.94,124.9,45.0]
[1725655390962,22.42789088,124.98,124.9,53.0062]
[1725655390963,8.0033,124.95,124.9,53.0062]
[1725655391163,47.3596346,125.0,124.91,8.0056]
[1725655391164,8.0025,124.96,124.91,8.0056]
[1725655391454,8.0035,124.95,124.9,45.0]
[1725655391752,8.0032,124.95,124.9,53.0062]
[1725655392136,29.88506061,125.01,124.91,20.0133]
[1725655392338,8.0013,124.98,124.92,45.0]
[1725655392552,8.0001,125.0,124.95,8.0031]
[1725655392757,37.23669521,125.04,124.93,20.0105]
[1725655392758,8.0019,124.97,124.93,20.0105]
[1725655393053,2.00069629,125.01,124.92,45.0]
[1725655393354,8.0039,124.94,124.89,8.0065]
[1725655393550,20.0042,124.98,124.88,8.0075]
[1725655393551,8.0046,124.93,124.88,8.0075]
[1725655393741,8.0075,124.89,124.87,15.2337]
[1725655394055,8.0065,124.9,124.83,26.3366]
[1725655394431,20.0109,124.94,124.86,8.0087]
[1725655394630,20.0,124.93,124.86,8.0087]
[1725655394826,8.0052,124.92,124.87,8.0077]
[1725655395050,28.0062,124.91,124.86,8.0084]
[1725655395252,131.8,124.96,124.87,20.0201]
[1725655395453,6.4712,124.98,124.87,20.0201]
[1725655395753,131.8,125.01,124.83,46.3625]
[1725655395754,8.003,124.96,124.91,8.0052]
[1725655396351,8.0033,124.95,124.92,45.0]
[1725655397061,8.0024,124.97,124.92,45.0]
[1725655397361,8.0024,124.97,124.92,53.0045]
[1725655397564,8.0013,124.98,124.93,8.004]
[1725655397739,8.0013,124.98,124.94,45.0]
[1725655398140,8.0008,124.99,124.95,8.0031]
[1725655398543,8.0001,125.0,124.95,8.0031]
[1725655398749,8.0023,124.97,124.93,20.01]
[1725655399038,8.0014,124.98,124.93,28.0142]
[1725655399242,19.9991,125.01,124.93,28.0142]
[1725655399243,8.0008,124.99,124.94,8.0035]
[1725655399469,8.0008,124.99,124.95,8.0031]
[1725655399657,8.0018,124.98,124.93,20.01]
[1725655399861,8.0007,124.99,124.94,8.0033]
[1725655400050,8.0015,124.98,124.93,28.0143]
[1725655400250,8.0015,124.98,124.94,45.0]
[1725655400460,8.002,124.97,124.94,45.0]
[1725655400663,8.0027,124.96,124.92,6.2683]
[1725655400841,2.00093188,124.99,124.89,8.0068]
[1725655401042,2.00128004,124.98,124.89,8.0068]
[1725655401243,8.004,124.94,124.89,8.0068]
[1725655401454,22.00498004,124.98,124.88,6.5266]
[1725655401455,8.0053,124.92,124.88,6.5266]
[1725655401761,22.00880858,124.96,124.88,14.5339]
[1725655401951,8.0049,124.93,124.88,14.5339]
[1725655402151,8.0049,124.93,124.89,8.0068]
[1725655402353,20.0,124.97,124.89,20.0165]
[1725655402666,20.0,124.98,124.93,8.0042]
[1725655402860,20.0,124.99,124.92,8.005]
[1725655403065,23.39213388,125.02,124.88,6.5266]
[1725655403066,21.39152679,125.02,124.88,6.5266]
[1725655403245,21.39152679,125.02,124.89,65.0]
[1725655403448,2.000412,125.01,124.89,65.0]
[1725655403770,20.007,124.96,124.89,45.0]
[1725655404063,62.00662609,124.99,124.89,20.017]
[1725655404269,62.00662609,124.99,124.89,28.0235]
[1725655404270,2.00112449,124.98,124.89,28.0235]
[1725655404641,8.0059,124.91,124.87,8.0082]
[1725655404939,2.00112449,124.98,124.86,36.4779]
[1725655404940,20.0085,124.95,124.86,36.4779]
[1725655405146,8.0065,124.9,124.86,36.4779]
[1725655405363,8.0065,124.9,124.86,44.4866]
[1725655405565,8.0059,124.91,124.86,44.4866]
[1725655405764,8.0036,124.95,124.88,20.0185]
[1725655406067,8.0026,124.96,124.91,8.0053]
[1725655406262,8.0026,124.96,124.92,45.0]
[1725655406976,8.002,124.97,124.92,53.0049]
[1725655407365,8.0035,124.95,124.92,45.0]
[1725655407548,8.0035,124.95,124.9,28.0211]
[1725655407549,8.0035,124.95,124.91,45.0]
[1725655407749,20.0021,124.99,124.91,53.0053]
[1725655407967,8.0041,124.94,124.91,45.0]
[1725655408370,8.0039,124.94,124.91,45.0]
[1725655408558,8.0045,124.93,124.91,45.0]
[1725655408870,8.0045,124.93,124.89,8.0064]
[1725655409073,8.0059,124.91,124.87,28.028]
[1725655409566,20.0,124.92,124.86,16.4567]
[1725655409751,20.0,124.94,124.86,16.4567]
[1725655410258,20.0,124.94,124.84,6.5993]
[1725655410259,8.0076,124.88,124.84,6.5993]
[1725655410464,8.0091,124.86,124.81,43.5728]
[1725655410973,8.0084,124.87,124.82,8.0114]
[1725655411358,8.0077,124.88,124.83,8.0107]
[1725655411555,20.0,124.87,124.83,8.0107]
[1725655411764,20.0,124.87,124.84,8.0102]
[1725655412283,8.0068,124.9,124.85,53.0095]
[1725655412581,28.007,124.89,124.85,53.0095]
[1725655412875,8.0064,124.9,124.85,53.0095]
[1725655413072,20.0,124.89,124.85,53.0095]
[1725655413659,28.0074,124.89,124.85,45.0]
[1725655414154,8.0077,124.88,124.85,45.0]
[1725655414670,20.0,124.87,124.81,15.5311]
[1725655414852,20.0,124.89,124.81,15.5311]
[1725655415053,28.0071,124.89,124.84,8.0101]
[1725655415372,20.0,124.89,124.83,20.0261]
[1725655415568,8.0071,124.89,124.84,8.0101]
[1725655415871,8.0071,124.89,124.85,45.0]
[1725655416074,8.0066,124.9,124.85,53.009]
[1725655416272,20.012,124.93,124.85,65.0232]
[1725655416463,20.0069,124.96,124.85,45.0]
[1725655416666,8.0046,124.93,124.88,8.0071]
[1725655416853,8.0046,124.93,124.89,45.0]
[1725655417060,8.0052,124.92,124.89,45.0]
[1725655417260,24.39083169,124.96,124.88,45.0]
[1725655417450,22.38926809,124.96,124.88,53.0076]
[1725655417764,8.005,124.93,124.88,53.0076]
[1725655417974,20.0,124.92,124.88,53.0076]
[1725655418160,20.0,124.92,124.88,45.0]
[1725655418366,20.0,124.92,124.89,8.0068]
[1725655418574,10.38546809,124.96,124.9,53.0062]
[1725655418786,8.0034,124.95,124.9,53.0062]
[1725655419162,8.0026,124.96,124.91,8.0054]
[1725655419477,2.00113851,124.96,124.86,20.0221]
[1725655419786,8.0076,124.89,124.84,8.0096]
[1725655419981,12.53415164,124.96,124.83,40.0515]
[1725655420284,8.0062,124.91,124.87,8.0081]
[1725655420455,20.0,124.9,124.87,8.0081]
[1725655421061,20.0,124.9,124.88,45.0]
[1725655421457,24.4214378,124.96,124.88,45.0]
[1725655421458,22.4196573,124.96,124.89,8.0068]
[1725655421660,2.4122573,124.96,124.87,20.0198]
[1725655421871,2.00120305,124.96,124.87,20.0198]
[1725655422062,8.0051,124.92,124.87,20.0198]
[1725655422266,8.0046,124.93,124.87,20.0198]
[1725655422959,8.0039,124.94,124.89,8.0068]
[1725655423160,20.0,124.93,124.89,8.0068]
[1725655423379,20.0,124.93,124.9,8.0063]
[1725655423569,20.0,124.93,124.89,8.0069]
[1725655424258,20.0,124.93,124.9,8.0059]
[1725655424568,20.0,124.94,124.9,8.0059]
[1725655424862,20.0,124.94,124.86,20.0213]
[1725655425187,20.0085,124.95,124.86,28.0301]
[1725655425387,20.0085,124.95,124.86,20.0213]
[1725655425388,8.0069,124.9,124.86,20.0213]
[1725655425593,8.0071,124.89,124.85,8.009]
[1725655425765,2.00170819,124.95,124.82,5.58121301]
[1725655426084,8.0107,124.84,124.81,15.5311]
[1725655426284,8.0114,124.83,124.77,48.66401301]
[1725655426590,8.0114,124.83,124.78,8.0138]
[1725655426796,20.0183,124.89,124.75,12.06521301]
[1725655426797,20.0227,124.86,124.75,6.484]
[1725655427086,2.00342805,124.85,124.75,6.484]
[1725655427273,20.0272,124.83,124.74,20.0415]
[1725655427676,8.014,124.79,124.73,8.0168]
[1725655427869,20.0,124.78,124.72,15.7315]
[1725655428280,8.0149,124.77,124.72,15.7315]
[1725655428587,8.0132,124.8,124.74,8.0165]
[1725655428764,28.0135,124.79,124.72,15.7315]
[1725655430270,28.0135,124.79,124.72,23.7494]
[1725655431392,8.0143,124.78,124.72,23.7494]
[1725655431590,20.0,124.77,124.72,23.7494]
[1725655431780,22.00381181,124.77,124.68,6.484]
[1725655432099,8.0161,124.75,124.68,26.5352]
[1725655432403,2.00407028,124.8,124.71,20.0463]
[1725655432567,8.0149,124.77,124.71,28.0647]
[1725655432767,20.0,124.76,124.71,28.0647]
[1725655432966,20.0,124.76,124.72,8.0179]
[1725655433188,20.0304,124.81,124.72,8.0179]
[1725655433393,20.0,124.8,124.72,8.0179]
[1725655433891,20.0,124.8,124.73,45.0]
[1725655434593,20.0,124.8,124.72,53.0176]
[1725655434977,8.0141,124.78,124.72,53.0176]
[1725655435181,20.0,124.77,124.72,45.0]
[1725655435380,2.42652571,124.83,124.73,8.0173]
[1725655435578,2.42652571,124.83,124.74,65.0413]
[1725655435579,20.0,124.83,124.74,65.0413]
[1725655435783,20.0,124.83,124.75,45.0]
[1725655436171,20.0,124.83,124.74,20.0413]
[1725655436368,8.0127,124.81,124.74,28.0577]
[1725655436571,28.013,124.8,124.75,45.0]
[1725655436768,28.013,124.8,124.75,53.0159]
[1725655436991,20.0,124.8,124.75,53.0159]
[1725655437199,8.0162,124.75,124.7,20.0466]
[1725655437389,8.0153,124.77,124.7,28.0658]
[1725655437688,20.0,124.76,124.72,8.0179]
[1725655437875,20.0,124.8,124.7,20.0466]
[1725655437876,8.0148,124.77,124.7,28.0654]
[1725655438200,20.0,124.76,124.7,20.0466]
[1725655438380,20.0,124.76,124.68,6.484]
[1725655438716,20.0,124.77,124.67,15.7315]
[1725655438997,8.0167,124.74,124.68,8.0198]
[1725655439206,8.0167,124.74,124.67,15.7315]
[1725655439207,28.0177,124.73,124.67,23.7526]
[1725655439386,20.0,124.73,124.67,23.7526]
[1725655439585,20.0,124.73,124.68,8.0205]
[1725655439901,8.0142,124.78,124.71,8.0185]
[1725655440190,28.015,124.77,124.71,8.0185]
[1725655440396,20.0,124.77,124.71,8.0185]
[1725655440578,20.0,124.77,124.72,45.0]
[1725655441675,8.0135,124.79,124.72,65.0448]
[1725655441877,20.0,124.78,124.72,65.0448]
[1725655442176,392.1,124.87,124.72,65.0448]
[1725655442392,8.37498439,124.84,124.72,65.0448]
[1725655442590,20.0279,124.83,124.72,73.0623]
[1725655442902,20.0279,124.83,124.72,45.0]
[1725655442903,2.00368543,124.82,124.72,45.0]
[1725655443199,8.0167,124.74,124.69,8.0198]
[1725655443375,20.0354,124.78,124.68,20.0499]
[1725655443571,20.0354,124.78,124.64,6.4177]
[1725655443572,20.0415,124.75,124.65,20.0559]
[1725655443797,8.0198,124.7,124.65,20.0559]
[1725655443986,8.02,124.69,124.64,6.4177]
[1725655444184,8.02,124.69,124.56,82.49483065]
[1725655444185,22.8163,124.67,124.5,6.5724]
[1725655444391,8.0257,124.6,124.5,6.5724]
[1725655444572,8.0236,124.64,124.57,8.0274]
[1725655444775,6.4077,124.67,124.54,20.0733]
[1725655444776,8.0244,124.62,124.55,8.0284]
[1725655444985,8.0244,124.62,124.54,20.0733]
[1725655445193,8.0237,124.64,124.54,20.0733]
[1725655445397,20.0,124.63,124.54,20.0733]
[1725655445580,28.0238,124.63,124.57,8.0274]
[1725655445776,20.0,124.63,124.56,8.0281]
[1725655446000,20.0,124.66,124.56,8.0281]
[1725655446574,8.0245,124.62,124.56,8.0281]
[1725655446804,8.0253,124.61,124.54,28.1026]
[1725655447110,8.0263,124.59,124.54,20.0733]
[1725655447305,28.0257,124.6,124.54,28.1024]
[1725655447482,20.0,124.6,124.54,28.1024]
[1725655448002,8.0254,124.61,124.55,8.0286]
[1725655448302,8.0232,124.64,124.57,8.0273]
[1725655448491,20.0,124.63,124.52,72.64693065]
[1725655448694,20.0,124.63,124.57,28.0961]
[1725655448889,20.0,124.63,124.57,20.0687]
[1725655448890,8.0237,124.63,124.57,20.0687]
[1725655449796,8.0237,124.63,124.57,28.0963]
[1725655450693,8.0231,124.64,124.59,8.0262]
[1725655450893,20.0,124.63,124.59,8.0262]
[1725655451402,7.35968291,124.66,124.59,8.0262]
[1725655451403,8.0224,124.66,124.59,8.0262]
[1725655451596,20.0,124.65,124.59,8.0262]
[1725655451989,8.0211,124.68,124.6,65.0638]
[1725655452307,8.0202,124.69,124.63,8.0236]
[1725655453221,60.1286,124.74,124.64,8.023]
[1725655453377,131.8,124.75,124.65,20.0559]
[1725655453584,8.0172,124.74,124.67,8.0211]
[1725655453786,8.018,124.72,124.65,28.0777]
[1725655454112,8.0176,124.73,124.67,8.0206]
[1725655454407,8.018,124.72,124.67,8.0206]
[1725655454610,8.018,124.72,124.66,8.0217]
[1725655455194,20.0,124.71,124.6,40.1267]
[1725655455518,8.0205,124.68,124.62,28.0845]
[1725655455808,2.00521729,124.72,124.62,20.0607]
[1725655455990,8.0218,124.66,124.62,20.0607]
[1725655456192,8.0212,124.67,124.62,28.0849]
[1725655456497,8.0205,124.68,124.62,28.0849]
[1725655456699,20.0,124.67,124.63,8.0236]
[1725655457118,20.0,124.67,124.62,20.0607]
[1725655457119,20.0403,124.75,124.64,45.0]
[1725655457415,8.0194,124.7,124.65,8.0223]
[1725655457600,20.0,124.69,124.65,8.0223]
[1725655457803,20.0,124.69,124.64,8.023]
[1725655457997,28.0201,124.69,124.63,53.0234]
[1725655458696,20.0,124.69,124.64,8.0229]
[1725655458897,8.0192,124.7,124.65,53.0221]
[1725655459112,20.0,124.69,124.65,8.0221]
[1725655459494,28.0201,124.69,124.64,8.0231]
[1725655459696,28.0201,124.69,124.65,45.0]
[1725655460096,20.0,124.69,124.59,26.3982]
[1725655460506,2.00534542,124.73,124.61,20.0613]
[1725655460507,8.0205,124.68,124.61,20.0613]
[1725655460813,8.30184242,124.76,124.66,16.0935]
[1725655460996,8.0166,124.75,124.69,8.0193]
[1725655461320,8.0166,124.75,124.7,8.0189]
[1725655461513,8.0166,124.75,124.71,45.0]
[1725655462514,26.0569,124.8,124.72,8.0178]
[1725655462816,8.0141,124.78,124.73,8.0172]
[1725655463119,6.344,124.84,124.74,45.0]
[1725655463323,1.39577962,124.85,124.75,20.0389]
[1725655463324,8.0116,124.82,124.75,20.0389]
[1725655463625,8.0116,124.82,124.78,8.0141]
[1725655463919,8.011,124.83,124.75,20.0389]
[1725655464103,8.011,124.83,124.76,45.0]
[1725655464305,35.3122,124.9,124.76,51.102]
[1725655464521,35.3122,124.9,124.77,20.0]
[1725655464522,37.31468253,124.9,124.77,20.0]
[1725655464725,38.71004679,124.9,124.78,45.0]
[1725655465225,36.70756426,124.9,124.78,45.0]
[1725655465426,8.009,124.86,124.8,8.0127]
[1725655465603,8.009,124.86,124.81,45.0]
[1725655465801,8.009,124.86,124.81,53.0118]
[1725655466506,20.0,124.85,124.81,53.0118]
[1725655466909,8.009,124.86,124.81,53.0118]
[1725655467115,8.0097,124.85,124.81,45.0]
[1725655467501,8.009,124.86,124.81,45.0]
[1725655468120,20.0,124.85,124.81,53.0121]
[1725655469200,28.0096,124.85,124.81,53.0121]
[1725655469726,28.0096,124.85,124.79,20.0323]
[1725655469727,20.0,124.85,124.79,20.0323]
[1725655469924,133.19536426,124.9,124.81,20.0296]
[1725655470227,20.0,124.89,124.81,20.0296]
[1725655470411,6.344,124.92,124.83,20.0263]
[1725655470612,6.344,124.92,124.87,8.0077]
[1725655470613,9.40001674,124.92,124.87,8.0077]
[1725655470810,16.413,124.95,124.87,8.0077]
[1725655471014,8.0056,124.92,124.87,8.0077]
[1725655471227,37.81645687,124.95,124.86,8.0088]
[1725655472316,8.0064,124.9,124.85,28.0323]
[1725655472509,20.0,124.94,124.86,53.0088]
[1725655473217,8.005,124.93,124.88,8.0076]
[1725655473606,8.0052,124.92,124.87,28.0277]
[1725655473805,8.0052,124.92,124.88,45.0]
[1725655474734,8.0044,124.94,124.88,53.0076]
[1725655475404,20.0074,124.96,124.88,45.0]
[1725655475721,8.0059,124.91,124.88,45.0]
[1725655475930,8.0059,124.91,124.87,20.0195]
[1725655476628,8.0052,124.92,124.87,28.0276]
[1725655476808,20.0,124.91,124.87,28.0276]
[1725655477009,28.0058,124.91,124.87,28.0276]
[1725655477404,28.0058,124.91,124.87,20.0195]
[1725655480223,8.0064,124.9,124.86,8.0088]
[1725655480425,8.0064,124.9,124.85,14.0904]
[1725655480726,28.0059,124.91,124.86,53.0089]
[1725655480929,20.0,124.91,124.87,8.0082]
[1725655481113,20.0,124.91,124.88,45.0]
[1725655481528,28.0058,124.91,124.86,20.0211]
[1725655481737,20.0,124.91,124.86,28.0299]
[1725655481921,2.42074841,124.93,124.86,28.0299]
[1725655482231,20.0,124.95,124.86,28.0299]
[1725655482607,8.0058,124.91,124.86,28.0299]
[1725655482816,8.0052,124.92,124.87,8.008]
[1725655483031,8.0052,124.92,124.88,45.0]
[1725655483233,20.0,124.91,124.88,45.0]
[1725655483429,22.47040228,124.96,124.88,53.007]
[1725655483615,8.0045,124.93,124.88,53.007]
[1725655483822,20.0,124.92,124.88,53.007]
[1725655484248,8.0039,124.94,124.88,65.0184]
[1725655484448,2.46300228,124.96,124.91,8.0054]
[1725655484731,8.0027,124.96,124.92,8.0051]
[1725655484915,20.0,124.95,124.92,53.0051]
[1725655485115,20.0,124.95,124.92,45.0]
[1725655485417,8.0027,124.96,124.92,45.0]
[1725655485616,8.0027,124.96,124.92,53.005]
[1725655485815,8.0027,124.96,124.92,45.0]
[1725655486125,2.36724774,124.98,124.92,45.0]
[1725655486313,2.36724774,124.98,124.9,28.0213]
[1725655486314,8.0033,124.95,124.91,53.0056]
[1725655487139,8.0065,124.9,124.84,20.0246]
[1725655487332,42.00765815,124.98,124.84,20.0246]
[1725655487644,20.0103,124.94,124.86,8.0084]
[1725655487825,72.14210936,124.97,124.87,8.0081]
[1725655487826,8.0052,124.92,124.87,8.0081]
[1725655488028,20.0,124.91,124.86,20.0214]
[1725655488226,40.0055,124.97,124.86,20.0214]
[1725655488227,8.0045,124.93,124.88,8.0071]
[1725655488834,8.0045,124.93,124.89,53.0068]
[1725655489048,40.0055,124.97,124.85,26.1043]
[1725655489341,8.0051,124.92,124.87,8.0077]
[1725655489634,8.0051,124.92,124.88,8.0075]
[1725655489836,8.0046,124.93,124.89,8.007]
[1725655490039,20.0,124.92,124.89,8.007]
[1725655490550,2.46800315,124.97,124.9,45.0]
[1725655490726,21.39174131,125.02,124.92,8.005]
[1725655491035,20.0041,124.98,124.89,53.0066]
[1725655492228,20.0041,124.98,124.89,45.0]
[1725655492425,20.0,124.97,124.88,45.0]
[1725655492939,8.0033,124.95,124.9,8.0062]
[1725655493138,20.0,124.94,124.91,45.0]
[1725655493445,20.0,124.94,124.91,53.0057]
[1725655493753,20.0,124.95,124.91,53.0057]
[1725655494341,8.002,124.97,124.92,8.005]